bitfinex-derivatives/quotes_ETHF0:USTF0_20241008
["timestamp","ask_amount","ask_price","bid_price","bid_amount"]
[1728396959614,0.41119,2432.8,2432.2,0.4221]
[1728396959805,3.61899,2432.8,2432.3,0.41126]
[1728396960011,0.41119,2432.8,2432.3,0.41126]
[1728396960317,3.2078,2433.1,2432.2,0.4221]
[1728396960520,3.2078,2433.1,2432.3,0.41127]
[1728396960715,0.3986,2433.8,2432.3,7.1478]
[1728396960716,3.2078,2433.5,2432.3,7.1478]
[1728396961014,3.2078,2433.5,2432.7,1.02802]
[1728396961211,3.2078,2433.5,2433.0,0.41114]
[1728396961417,7.1478,2433.8,2433.1,0.41113]
[1728396961713,7.1478,2433.8,2433.3,0.4111]
[1728396961927,7.1478,2433.8,2433.3,0.41109]
[1728396962217,7.55883,2433.8,2433.4,0.4221]
[1728396962406,7.1478,2433.8,2433.4,0.4221]
[1728396962611,3.2078,2433.8,2433.5,0.41106]
[1728396963006,3.2078,2433.8,2433.4,0.4221]
[1728396963315,3.2078,2434.0,2433.7,0.41103]
[1728396963514,0.41096,2434.2,2433.7,0.41103]
[1728396963818,3.2078,2434.3,2433.8,0.41101]
[1728396963819,3.61875,2434.3,2433.8,0.41101]
[1728396964016,0.41096,2434.2,2433.8,0.41101]
[1728396964213,3.2078,2434.0,2433.9,0.411]
[1728396964416,0.41094,2434.3,2434.0,0.41098]
[1728396964417,3.2078,2434.3,2434.0,0.41098]
[1728396964620,3.2078,2434.1,2434.0,0.41098]
[1728396964911,0.2006,2434.6,2433.6,0.4284]
[1728396964912,3.2078,2434.4,2433.6,0.4284]
[1728396965115,3.2078,2434.4,2434.3,0.41093]
[1728396965415,4.35088,2434.7,2433.9,1.02751]
[1728396965416,3.94,2434.7,2433.9,1.02751]
[1728396965617,3.94,2434.7,2434.5,0.41089]
[1728396965815,3.94,2434.7,2434.0,0.3904]
[1728396966010,0.41091,2434.5,2434.1,0.41095]
[1728396966211,0.41093,2434.4,2434.0,0.80138]
[1728396966517,0.41094,2434.3,2434.0,0.3904]
[1728396967019,3.2078,2434.1,2433.6,0.4284]
[1728396967215,3.61878,2434.1,2433.7,0.80142]
[1728396967414,3.2078,2433.8,2433.5,0.41106]
[1728396967620,3.2078,2433.8,2433.2,0.3904]
[1728396967816,3.2078,2433.8,2433.6,0.41104]
[1728396968019,3.2078,2433.8,2433.7,0.41104]
[1728396968417,11.66762,2433.8,2433.5,0.41107]
[1728396968625,7.55882,2433.8,2433.2,0.3904]
[1728396968819,7.1478,2433.8,2433.2,0.3904]
[1728396969127,3.2078,2433.5,2433.3,0.4111]
[1728396969315,0.41111,2433.3,2433.0,0.41115]
[1728396969514,3.2078,2433.1,2432.8,0.41117]
[1728396969823,3.2078,2433.1,2432.9,0.41117]
[1728396970127,3.2078,2433.1,2432.8,0.41117]
[1728396970326,3.61894,2433.1,2432.8,0.41117]
[1728396970619,3.2078,2433.1,2432.9,0.41116]
[1728396970819,3.2078,2433.1,2432.6,0.813]
[1728396971024,3.2078,2433.1,2432.9,0.41116]
[1728396971218,3.2078,2433.1,2432.6,0.813]
[1728396971724,3.2078,2433.1,2432.9,0.41117]
[1728396972017,40.8,2433.3,2433.0,0.41115]
[1728396972217,40.8,2433.3,2433.2,0.41112]
[1728396972621,4.1096,2433.3,2433.2,0.41112]
[1728396972821,3.2078,2433.4,2433.2,0.41111]
[1728396973219,3.2078,2433.4,2433.3,0.4111]
[1728396973422,3.2078,2433.4,2432.8,1.02796]
[1728396973621,3.2078,2433.4,2433.3,0.4111]
[1728396974321,3.61889,2433.4,2433.2,0.41111]
[1728396974522,3.6074,2433.7,2433.0,1.02787]
[1728396974723,3.2078,2433.7,2432.8,3.2078]
[1728396974924,7.1478,2433.8,2433.6,0.41105]
[1728396975119,3.2078,2433.8,2433.7,0.41104]
[1728396975621,0.41104,2433.7,2433.5,0.41106]
[1728396975826,3.2078,2433.8,2433.3,0.4028]
[1728396976125,0.41104,2433.7,2433.5,0.41106]
[1728396976524,3.2078,2433.8,2433.3,0.4028]
[1728396976722,3.2078,2433.5,2433.4,0.41109]
[1728396976930,3.94,2433.7,2433.6,0.41105]
[1728396977117,4.1088,2433.7,2433.6,0.41105]
[1728396977324,3.2078,2433.8,2433.3,0.4028]
[1728396977523,3.2078,2433.8,2433.7,0.41104]
[1728396977728,6.496,2434.8,2433.4,1.02772]
[1728396977729,3.2078,2434.4,2434.1,0.41095]
[1728396977918,4.34,2434.8,2433.8,4.23535]
[1728396978119,4.34,2434.5,2433.9,0.8294]
[1728396978319,0.41097,2434.1,2433.9,0.81289]
[1728396978525,0.41096,2434.2,2433.9,0.81289]
[1728396978825,4.34,2434.5,2434.0,0.41099]
[1728396979028,4.34,2434.5,2433.9,0.4019]
[1728396979232,4.34,2434.5,2434.1,0.41096]
[1728396979233,3.2078,2434.3,2434.1,0.41096]
[1728396979428,4.34,2434.5,2434.0,1.02747]
[1728396979739,3.2078,2434.8,2434.2,0.41095]
[1728396980329,7.5478,2434.8,2434.7,0.41087]
[1728396980521,7.5478,2435.1,2434.0,3.6353]
[1728396980727,3.2078,2435.1,2434.4,1.0273]
[1728396980928,3.2078,2435.1,2435.0,0.41082]
[1728396981334,3.2078,2435.1,2434.7,0.4034]
[1728396981728,7.5478,2435.1,2434.7,0.4034]
[1728396982031,0.41092,2434.5,2434.3,0.41093]
[1728396982223,3.2078,2434.5,2434.1,0.41095]
[1728396982425,0.41098,2434.1,2433.9,0.8144]
[1728396982633,3.2078,2434.2,2434.0,0.41098]
[1728396982829,7.72677,2434.2,2434.0,0.41098]
[1728396983031,0.41101,2433.9,2433.7,0.41103]
[1728396983226,0.41101,2433.9,2433.7,0.41104]
[1728396983227,3.61881,2433.9,2433.7,0.41104]
[1728396983725,0.41098,2434.1,2433.6,0.4034]
[1728396983928,4.2352,2434.2,2433.6,0.4034]
[1728396984127,0.411,2434.0,2433.7,0.41102]
[1728396984326,0.411,2434.0,2433.8,0.411]
[1728396984527,3.2078,2434.2,2434.0,0.41097]
[1728396984731,3.2078,2434.2,2433.6,1.43103]
[1728396985032,0.41098,2434.1,2433.9,0.411]
[1728396985222,3.2078,2434.2,2433.6,1.43103]
[1728396985430,3.61876,2434.2,2434.0,0.41097]
[1728396985834,0.41097,2434.1,2434.0,0.41097]
[1728396986031,3.61876,2434.2,2434.0,0.41098]
[1728396986432,0.41099,2434.1,2433.9,0.411]
[1728396986629,0.41099,2434.1,2433.6,1.43103]
[1728396986937,3.61876,2434.2,2434.0,0.41097]
[1728396987137,0.41098,2434.1,2433.9,0.41099]
[1728396987538,0.41098,2434.1,2433.6,1.43103]
[1728396987836,0.41097,2434.1,2433.9,0.41099]
[1728396988033,3.2078,2434.2,2433.6,1.43103]
[1728396988228,3.2078,2434.5,2433.6,0.4034]
[1728396988425,3.6187,2434.5,2434.4,0.41092]
[1728396988638,3.2078,2434.5,2434.4,0.41092]
[1728396989340,3.2078,2435.1,2434.4,5.13529]
[1728396989635,0.41084,2434.9,2434.7,0.41086]
[1728396990028,3.2078,2435.1,2434.5,1.02726]
[1728396990226,3.2078,2435.1,2435.0,0.41082]
[1728396990431,3.2078,2435.4,2435.0,0.41082]
[1728396990734,3.61855,2435.4,2435.2,0.41078]
[1728396990938,3.2078,2435.4,2435.3,0.41077]
[1728396991538,7.5478,2435.8,2435.1,0.3983]
[1728396991732,3.2078,2435.5,2435.1,0.3983]
[1728396992140,3.2078,2435.5,2435.3,0.41076]
[1728396992342,3.2078,2435.5,2435.4,0.41075]
[1728396992731,3.61849,2435.8,2435.5,0.41072]
[1728396992930,3.61849,2435.8,2435.1,1.42529]
[1728396992931,3.2078,2435.8,2435.6,0.41071]
[1728396993138,7.5478,2435.8,2435.3,0.41075]
[1728396993436,0.41078,2435.3,2435.1,0.3983]
[1728396993829,0.41076,2435.4,2435.1,0.80909]
[1728396994136,0.41077,2435.3,2435.1,0.3983]
[1728396994641,0.41081,2435.1,2434.9,3.2078]
[1728396994842,8.57465,2435.5,2434.9,3.2078]
[1728396995038,0.41077,2435.3,2435.1,0.41079]
[1728396995244,8.57465,2435.5,2434.9,3.2078]
[1728396995245,1.0269,2435.4,2434.9,3.2078]
[1728396995534,0.41079,2435.2,2434.9,3.2078]
[1728396995731,0.41079,2435.2,2435.0,0.41081]
[1728396995934,8.57466,2435.5,2435.0,0.4108]
[1728396995935,0.41078,2435.3,2435.0,0.4108]
[1728396996237,0.41076,2435.4,2435.2,0.41078]
[1728396996437,3.61854,2435.5,2434.9,1.02708]
[1728396996643,0.41075,2435.4,2435.2,0.41077]
[1728396997037,0.41075,2435.4,2434.8,0.41084]
[1728396997038,0.41083,2435.0,2434.8,0.41084]
[1728396997338,3.2078,2435.0,2434.5,3.6337]
[1728396997535,0.41088,2434.6,2434.3,0.41093]
[1728396997731,0.41093,2434.4,2434.2,0.41095]
[1728396998136,0.41093,2434.4,2434.1,0.82966]
[1728396998137,0.41094,2434.3,2434.1,0.82966]
[1728396998341,3.61873,2434.4,2434.1,0.82967]
[1728396998535,3.61873,2434.4,2434.2,0.41095]
[1728396998837,0.41093,2434.3,2434.1,0.82966]
[1728396999232,3.2078,2434.4,2434.1,0.4187]
[1728396999451,3.2078,2434.4,2434.3,0.41093]
[1728396999638,3.61872,2434.4,2434.2,0.41094]
[1728396999837,3.61872,2434.4,2434.1,0.4187]
[1728397000034,3.2078,2434.4,2434.3,0.41093]
[1728397000437,3.2078,2434.4,2434.1,0.4187]
[1728397000839,3.2078,2434.4,2434.3,0.41093]
[1728397001239,3.2078,2434.4,2434.1,0.4187]
[1728397001545,3.61872,2434.4,2434.3,0.41093]
[1728397001744,3.2078,2434.4,2434.3,0.41093]
[1728397002040,3.61872,2434.4,2434.3,0.41093]
[1728397003147,3.61872,2434.4,2434.1,0.4187]
[1728397003350,3.61872,2434.4,2434.2,0.41094]
[1728397003536,4.23511,2434.4,2434.1,0.4187]
[1728397003736,0.41095,2434.3,2434.2,0.41095]
[1728397003941,3.61873,2434.4,2434.2,0.41094]
[1728397004142,4.23512,2434.4,2434.1,0.4187]
[1728397004439,4.23512,2434.4,2434.0,0.41099]
[1728397004440,0.41098,2434.1,2434.0,0.41099]
[1728397004634,3.61878,2434.1,2434.0,0.41099]
[1728397004836,3.61878,2434.1,2433.9,0.80059]
[1728397005043,3.2078,2434.1,2434.0,0.41099]
[1728397005239,3.2078,2434.1,2433.9,0.3896]
[1728397005240,3.2078,2434.4,2433.5,4.23548]
[1728397005441,3.2078,2433.6,2432.8,0.4074]
[1728397005645,3.61886,2433.6,2433.4,0.41108]
[1728397006043,3.61886,2433.6,2432.7,0.4112]
[1728397006044,0.41114,2433.1,2432.7,0.4112]
[1728397006246,0.41115,2433.1,2432.8,0.41118]
[1728397006544,3.2078,2433.2,2432.4,0.4391166]
[1728397006843,3.2078,2433.2,2432.5,0.7927]
[1728397007042,0.41114,2433.1,2432.7,0.41119]
[1728397007247,4.23563,2433.2,2432.6,0.41121]
[1728397007547,3.61898,2432.9,2432.6,0.41121]
[1728397007743,3.2078,2432.9,2432.7,0.4112]
[1728397008346,3.61897,2432.9,2432.6,0.41121]
[1728397008645,3.2078,2432.9,2432.7,0.41119]
[1728397008854,3.61897,2432.9,2432.6,0.41121]
[1728397009145,3.2078,2432.9,2432.7,0.4112]
[1728397009345,3.2078,2432.9,2432.5,0.401]
[1728397009845,3.2078,2432.9,2432.4,0.44772937]
[1728397010044,3.2078,2432.9,2432.4,0.41124]
[1728397010045,0.4112,2432.8,2432.4,0.41124]
[1728397010351,3.2078,2432.9,2432.1,0.4164]
[1728397010551,3.2078,2432.6,2432.4,0.41124]
[1728397010846,3.2078,2432.6,2432.3,0.41126]
[1728397010847,3.61903,2432.6,2432.3,0.41126]
[1728397011149,3.2078,2432.6,2432.4,0.41125]
[1728397011743,3.2078,2432.6,2432.4,0.41124]
[1728397012246,3.61903,2432.6,2432.4,0.41125]
[1728397012447,3.61903,2432.6,2432.0,0.4074]
[1728397012448,0.41129,2432.2,2432.0,0.4074]
[1728397012748,0.41138,2431.7,2431.4,0.41142]
[1728397013047,3.2078,2431.8,2431.2,3.625]
[1728397013252,3.61917,2431.8,2431.5,0.41141]
[1728397013450,3.2078,2431.8,2431.2,4.07288392]
[1728397013646,0.41138,2431.7,2431.5,0.41141]
[1728397013846,3.2078,2431.8,2431.2,4.07288392]
[1728397014346,3.2078,2431.8,2431.5,0.4114]
[1728397014653,3.61917,2431.8,2431.4,0.41141]
[1728397014856,0.41138,2431.7,2431.3,0.41143]
[1728397015148,0.41138,2431.7,2431.4,0.41142]
[1728397015344,3.2078,2431.8,2431.2,4.07288392]
[1728397015652,3.61916,2431.8,2431.5,0.4114]
[1728397015848,3.61916,2431.8,2431.2,4.07288392]
[1728397016045,3.61916,2431.8,2431.2,3.65568392]
[1728397016250,3.2078,2431.8,2431.5,0.4114]
[1728397016550,3.2078,2431.8,2431.3,0.3887]
[1728397016850,3.2078,2431.8,2431.4,0.41142]
[1728397017050,3.61916,2431.8,2431.5,0.41139]
[1728397017347,3.61916,2431.8,2431.3,0.3887]
[1728397017348,3.2078,2431.8,2431.6,0.41138]
[1728397017756,3.2078,2431.8,2431.7,0.41137]
[1728397017960,3.2078,2432.1,2431.4,1.02855]
[1728397018150,0.41133,2432.0,2431.7,0.41136]
[1728397018344,4.34,2432.0,2431.4,0.4069]
[1728397018550,3.2078,2431.8,2431.7,0.41136]
[1728397020753,3.2078,2432.3,2432.2,0.41129]
[1728397021150,3.2078,2432.3,2431.5,1.43271]
[1728397021151,17.659,2432.3,2431.5,1.43271]
[1728397021455,17.659,2432.3,2431.5,0.4042]
[1728397021456,7.5478,2432.3,2431.5,0.4042]
[1728397021650,0.41134,2431.9,2431.7,0.41136]
[1728397021855,0.41134,2431.9,2431.5,0.4042]
[1728397021856,3.2078,2432.0,2431.5,0.4042]
[1728397022452,7.5478,2432.0,2431.5,0.4042]
[1728397023052,7.5478,2432.0,2431.9,0.41134]
[1728397023349,1.02822,2432.3,2431.6,1.02847]
[1728397023350,7.95908,2432.3,2431.6,1.02847]
[1728397023557,3.61907,2432.3,2432.1,0.4113]
[1728397023857,3.61909,2432.3,2431.7,1.02842]
[1728397024048,3.2078,2432.0,2431.5,0.4042]
[1728397024253,3.2078,2432.0,2431.8,0.41134]
[1728397024456,3.2078,2432.0,2431.5,0.4042]
[1728397024457,3.2078,2432.0,2431.9,0.41134]
[1728397025154,3.2078,2432.0,2431.5,0.4042]
[1728397025658,3.61914,2432.0,2431.7,0.41136]
[1728397025854,0.41135,2431.9,2431.7,0.41136]
[1728397026055,3.2078,2432.0,2431.5,0.4042]
[1728397026250,3.2078,2432.0,2431.9,0.41134]
[1728397027261,3.2078,2432.0,2431.9,4.52334]
[1728397027458,3.2078,2432.0,2431.9,0.41134]
[1728397027656,3.2078,2432.0,2431.9,4.52334]
[1728397028563,3.2078,2432.4,2432.3,0.41126]
[1728397028763,3.2078,2432.7,2432.1,0.4073]
[1728397028961,1.02789,2433.0,2432.2,1.02823]
[1728397029162,0.41122,2432.7,2432.2,1.02823]
[1728397029356,0.41122,2432.7,2432.5,0.41124]
[1728397029860,3.2078,2432.8,2432.7,0.4112]
[1728397030456,3.2078,2432.8,2432.7,4.5216]
[1728397030858,3.61894,2433.1,2432.7,4.1104]
[1728397031056,3.2078,2433.1,2432.8,0.393]
[1728397031255,3.61894,2433.1,2432.9,0.41116]
[1728397031862,3.61894,2433.1,2432.8,0.393]
[1728397031863,3.2078,2433.1,2432.8,0.393]
[1728397032063,3.2078,2433.4,2432.8,1.42097]
[1728397032365,3.6189,2433.4,2433.2,0.41112]
[1728397032555,0.41111,2433.3,2433.1,0.41113]
[1728397032966,3.2078,2433.4,2432.8,1.42097]
[1728397033169,0.4111,2433.3,2432.9,0.41117]
[1728397033467,0.41113,2433.2,2433.0,0.41115]
[1728397033669,3.2078,2433.1,2433.0,0.41115]
[1728397034462,3.2078,2433.4,2432.8,1.42097]
[1728397034667,3.2078,2433.4,2433.3,0.4111]
[1728397035668,3.2078,2433.4,2432.8,1.42097]
[1728397035866,0.41111,2433.3,2433.1,0.41113]
[1728397036067,0.41111,2433.3,2433.2,0.41112]
[1728397036273,0.41111,2433.3,2432.8,1.42097]
[1728397036466,3.2078,2433.1,2432.8,0.393]
[1728397036978,3.2078,2433.1,2432.3,3.2078]
[1728397036979,4.34,2432.9,2431.7,3.2078]
[1728397037165,0.41125,2432.5,2432.3,0.41127]
[1728397037365,3.2078,2432.7,2432.0,1.02829]
[1728397037565,0.41124,2432.6,2432.4,0.41125]
[1728397037764,44.0078,2432.7,2431.9,1.43515]
[1728397037765,3.2078,2432.7,2431.9,1.43515]
[1728397037964,0.41122,2432.6,2432.4,0.41125]
[1728397038365,7.5578,2432.7,2431.9,0.4068]
[1728397038570,7.5578,2432.4,2432.0,0.41131]
[1728397038771,0.41129,2432.2,2432.0,0.41131]
[1728397039172,1.02821,2432.3,2431.8,0.7847]
[1728397039375,3.2078,2432.1,2431.8,0.3913]
[1728397039574,0.41128,2432.3,2432.0,0.41132]
[1728397039775,0.41128,2432.3,2431.8,0.3913]
[1728397039969,7.5578,2432.4,2431.8,0.3913]
[1728397040171,7.5578,2432.4,2432.0,0.41132]
[1728397040372,0.41131,2432.1,2431.9,0.41134]
[1728397040569,7.5578,2432.4,2431.9,0.41133]
[1728397040769,0.41134,2431.9,2431.8,0.3913]
[1728397041367,0.41134,2431.9,2431.3,1.02858]
[1728397041368,4.112,2431.9,2431.4,0.4274]
[1728397041570,0.41147,2431.2,2430.9,0.4115]
[1728397041778,0.41147,2431.2,2430.8,0.41152]
[1728397041779,0.41149,2431.1,2430.8,0.41152]
[1728397042072,0.4115,2431.0,2430.8,0.41152]
[1728397042271,3.2078,2430.9,2430.0,0.2]
[1728397042475,3.2078,2430.9,2429.7,0.44604453]
[1728397042476,7.5578,2430.1,2429.7,0.44604453]
[1728397042671,7.5578,2430.1,2428.3,5.84655018]
[1728397042672,11.9078,2429.8,2428.4,3.2078]
[1728397042873,11.9078,2429.8,2428.7,0.41188]
[1728397042874,3.2078,2428.9,2428.7,0.41188]
[1728397043067,3.2078,2428.9,2428.4,3.2078]
[1728397043269,3.2078,2428.9,2428.5,0.41192]
[1728397043467,4.35,2429.0,2428.1,3.2078]
[1728397043468,3.2078,2429.0,2428.1,3.2078]
[1728397043671,4.35,2428.9,2428.1,3.2078]
[1728397043871,4.35,2428.9,2427.8,3.6116]
[1728397043872,3.2078,2428.7,2427.8,3.6116]
[1728397044078,3.2078,2428.3,2427.8,3.6116]
[1728397044371,3.2078,2428.3,2427.3,0.45286808]
[1728397044579,41.82956,2429.1,2427.8,3.2078]
[1728397044580,3.2078,2428.6,2427.8,3.2078]
[1728397044773,3.2078,2429.0,2428.1,3.2078]
[1728397045075,3.2078,2428.7,2427.7,3.2078]
[1728397045380,3.2078,2428.7,2427.5,0.41207]
[1728397045381,0.41196,2428.3,2427.5,0.41207]
[1728397045577,0.41197,2428.2,2427.4,3.9987]
[1728397045775,3.2078,2428.1,2427.4,3.9987]
[1728397046080,3.61979,2428.1,2427.4,3.9987]
[1728397046386,4.9,2427.6,2427.0,3.2078]
[1728397046677,3.2078,2427.2,2426.7,3.2078]
[1728397046873,3.2078,2427.6,2426.7,3.2078]
[1728397047080,3.2078,2427.9,2427.1,3.2078]
[1728397047469,40.8,2428.0,2426.9,3.2078]
[1728397047882,3.2078,2427.9,2426.9,3.61998]
[1728397048182,4.9,2427.7,2426.9,3.61998]
[1728397048373,3.2078,2427.6,2426.9,3.2078]
[1728397048580,45.7,2428.0,2426.9,3.2078]
[1728397048581,48.9078,2428.0,2426.9,3.2078]
[1728397048770,48.9078,2428.0,2427.1,0.41215]
[1728397048974,3.2078,2427.7,2426.9,3.2078]
[1728397049177,3.2078,2428.0,2426.9,3.2078]
[1728397049376,3.2078,2428.3,2427.5,3.2078]
[1728397049577,3.2078,2428.3,2427.2,3.2078]
[1728397049984,3.2078,2428.3,2427.1,0.3868]
[1728397050185,3.2078,2428.3,2427.2,3.2078]
[1728397050479,3.2078,2428.0,2427.2,3.2078]
[1728397050783,3.2078,2428.0,2427.3,0.41211]
[1728397051078,3.2078,2428.0,2427.2,3.2078]
[1728397051482,3.2078,2428.0,2427.2,3.61993]
[1728397051676,3.2078,2428.0,2427.3,0.41211]
[1728397051882,3.2078,2428.0,2427.2,3.61993]
[1728397052094,3.2078,2427.7,2427.1,0.41215]
[1728397052388,3.2078,2427.7,2427.0,0.4007]
[1728397052692,3.2078,2427.3,2426.5,3.2078]
[1728397052891,3.2078,2427.3,2426.6,0.41223]
[1728397053196,3.2078,2427.3,2426.5,3.2078]
[1728397053487,3.2078,2427.0,2426.5,3.2078]
[1728397054088,3.2078,2427.0,2426.0,0.41233]
[1728397054089,3.61998,2427.0,2426.0,0.41233]
[1728397054299,3.2078,2426.7,2425.7,3.2078]
[1728397054589,3.2078,2426.7,2426.4,0.41227]
[1728397054793,3.2078,2426.7,2426.3,0.41229]
[1728397054986,4.9,2427.2,2426.3,3.2078]
[1728397055291,3.2078,2427.6,2426.7,3.2078]
[1728397055789,8.1078,2427.9,2426.7,3.2078]
[1728397056000,8.51988,2427.6,2426.6,0.41223]
[1728397056187,3.2078,2427.6,2427.2,0.41213]
[1728397056385,3.2078,2427.6,2426.5,4.0449]
[1728397056586,8.1078,2427.6,2426.2,3.2078]
[1728397056781,8.1078,2427.6,2426.7,0.41221]
[1728397056990,3.2078,2427.0,2426.5,0.41224]
[1728397057197,3.2078,2427.0,2426.2,3.2078]
[1728397057198,4.9,2427.2,2426.2,3.2078]
[1728397057394,3.2078,2427.3,2426.2,3.2078]
[1728397057691,3.2078,2427.6,2426.8,3.2078]
[1728397057890,3.2078,2427.6,2426.6,1.0306]
[1728397058189,3.2078,2427.6,2427.3,0.41212]
[1728397058487,3.2078,2427.6,2426.8,3.2078]
[1728397058693,3.2078,2427.6,2427.1,0.41215]
[1728397059194,3.2078,2427.6,2426.8,3.2078]
[1728397059491,3.2078,2427.6,2427.2,0.41212]
[1728397059896,3.2078,2427.6,2427.3,0.41211]
[1728397060188,3.2078,2427.9,2427.1,3.2078]
[1728397060388,3.2078,2427.9,2426.8,3.2078]
[1728397060583,3.2078,2427.9,2427.5,0.41207]
[1728397060785,8.1078,2427.9,2426.9,0.4253]
[1728397060987,8.1078,2427.6,2426.8,3.2078]
[1728397061287,8.1078,2427.9,2426.9,1.03047]
[1728397061489,8.1078,2427.9,2427.3,0.4121]
[1728397061690,0.41205,2427.8,2427.2,0.41213]
[1728397061891,8.1078,2427.6,2427.0,0.41216]
[1728397062087,3.2078,2427.6,2426.8,3.2078]
[1728397062294,8.1078,2427.9,2426.9,1.03047]
[1728397062497,8.1078,2427.9,2426.8,3.2078]
[1728397062498,3.2078,2427.6,2426.8,3.2078]
[1728397062888,3.2078,2427.6,2427.1,0.41214]
[1728397063100,3.2078,2427.6,2427.0,0.41216]
[1728397063101,8.1078,2427.6,2427.0,0.41216]
[1728397063395,0.41209,2427.5,2427.0,0.41216]
[1728397063594,0.41209,2427.5,2426.8,3.2078]
[1728397063595,8.1078,2427.6,2427.1,0.41215]
[1728397063787,8.1078,2427.6,2427.3,0.41211]
[1728397063985,8.1078,2427.6,2426.8,3.2078]
[1728397064184,8.1078,2427.6,2427.4,0.4121]
[1728397064398,3.2078,2427.9,2427.2,1.03035]
[1728397064697,3.2078,2427.9,2427.7,0.41205]
[1728397064899,3.2078,2427.9,2427.2,1.03035]
[1728397065092,3.61982,2427.9,2427.0,1.03043]
[1728397065294,3.61982,2427.9,2427.6,0.41206]
[1728397065495,0.41204,2427.8,2427.5,0.41208]
[1728397065698,0.41205,2427.7,2427.0,1.03043]
[1728397066000,3.2078,2427.9,2427.5,0.41208]
[1728397066203,3.2078,2427.9,2427.7,0.41205]
[1728397066394,3.2078,2427.9,2427.8,0.41203]
[1728397066706,3.2078,2427.9,2426.9,3.6263]
[1728397066896,3.2078,2427.9,2427.1,1.03039]
[1728397067100,3.2078,2427.9,2427.0,1.03043]
[1728397067409,3.2078,2427.9,2427.8,0.41203]
[1728397067794,7.327,2427.9,2427.8,0.41203]
[1728397068706,7.327,2427.9,2427.3,1.03029]
[1728397068890,3.61983,2427.9,2427.7,0.41203]
[1728397069099,3.2078,2427.9,2427.3,1.03029]
[1728397069403,3.2078,2427.9,2427.8,0.41203]
[1728397069898,7.327,2427.9,2427.8,0.41203]
[1728397070404,7.73902,2427.9,2427.7,0.41204]
[1728397070601,3.2078,2427.9,2427.8,0.41203]
[1728397071699,3.2078,2427.9,2427.5,0.41207]
[1728397071899,3.2078,2427.9,2427.8,0.41203]
[1728397072099,3.2078,2427.9,2427.1,3.2078]
[1728397072301,3.2078,2427.9,2427.8,0.41203]
[1728397072799,4.35,2428.1,2427.5,1.03018]
[1728397072993,3.2078,2428.2,2428.1,0.41198]
[1728397073403,7.3262,2428.2,2427.9,0.41201]
[1728397073699,3.61977,2428.2,2428.1,0.41198]
[1728397073907,3.2078,2428.2,2428.1,0.41198]
[1728397074104,3.2078,2428.2,2427.7,1.03014]
[1728397074105,3.2078,2428.2,2427.6,3.2078]
[1728397074300,3.2078,2428.2,2427.5,1.8651]
[1728397074604,0.41204,2427.8,2427.7,0.41205]
[1728397074816,3.2078,2428.2,2427.5,0.8349]
[1728397075013,0.41204,2427.8,2427.6,0.41205]
[1728397075306,0.41204,2427.8,2427.7,0.41205]
[1728397075510,0.41206,2427.7,2427.5,0.41207]
[1728397075698,3.2078,2427.9,2427.1,0.7985]
[1728397076008,0.41211,2427.4,2427.2,0.41213]
[1728397076309,0.41211,2427.4,2427.1,0.7985]
[1728397076310,0.41209,2427.5,2427.3,0.41211]
[1728397076500,3.2078,2427.6,2427.1,0.7985]
[1728397076901,3.2078,2427.9,2427.1,0.7985]
[1728397077102,0.41209,2427.5,2427.3,0.4121]
[1728397077413,0.41208,2427.6,2427.4,0.4121]
[1728397078010,1.03014,2427.7,2427.1,0.7985]
[1728397078200,1.03014,2427.7,2427.4,0.4121]
[1728397078401,0.41207,2427.6,2427.5,0.41208]
[1728397078696,0.41212,2427.3,2427.2,0.41213]
[1728397078902,4.23801,2427.6,2427.2,0.41212]
[1728397079103,0.4121,2427.4,2427.3,0.41212]
[1728397079305,0.4121,2427.4,2427.0,3.2078]
[1728397079499,0.41209,2427.5,2427.4,0.4121]
[1728397079705,3.2078,2427.6,2427.0,4.23822]
[1728397080107,4.23799,2427.6,2427.1,0.41215]
[1728397080297,0.4121,2427.5,2427.1,1.44254]
[1728397080502,0.4121,2427.5,2427.2,0.41213]
[1728397080503,0.41212,2427.3,2427.2,0.41213]
[1728397080703,0.41212,2427.3,2426.6,0.45441278]
[1728397080704,3.2078,2427.3,2426.5,3.2078]
[1728397081002,4.12,2427.4,2426.0,0.41234]
[1728397081003,0.4123,2426.3,2426.0,0.41234]
[1728397081201,1.03061,2426.6,2425.9,3.2078]
[1728397081499,0.41228,2426.4,2426.2,0.41229]
[1728397081815,3.2078,2426.7,2425.9,3.2078]
[1728397082106,0.41224,2426.6,2426.4,0.41226]
[1728397082402,3.2078,2426.7,2426.6,0.41224]
[1728397082608,0.41224,2426.6,2426.4,0.41227]
[1728397082802,7.5578,2426.7,2425.9,3.2078]
[1728397083000,0.41227,2426.5,2426.3,0.41228]
[1728397083507,3.2078,2427.2,2426.4,4.1216]
[1728397083707,0.41221,2426.8,2426.6,0.41222]
[1728397083907,1.03039,2427.1,2426.3,1.03073]
[1728397084100,7.5578,2427.3,2426.2,3.2078]
[1728397084302,0.4123,2426.3,2426.1,0.41231]
[1728397084606,0.41234,2426.0,2425.9,3.6314]
[1728397085108,10.53474,2426.0,2425.9,3.2078]
[1728397085305,10.53474,2426.0,2425.0,10.305]
[1728397085306,0.41247,2425.3,2424.8,3.2078]